Cogmind - Beta 17 @@@ ROGUE MODE // 2026.08.06 @ 13:07:43 Player: Floof Enjoyer Result: Destroyed by CL-ZJW(R) with Subdweller Machine Gun Performance ------------- Evolutions (0) 0 Regions Visited (3) 600 Robots Destroyed (5) 25 Value Destroyed (167) 167 Prototype IDs (0) 0 Alien Tech Used (0) 0 Bonus (0) 0 TOTAL SCORE: 792 Bonus ------- None Cogmind --------- Core Integrity 0/250 Matter 252/300 Energy 100/100 System Corruption 0% Temperature Cool (0) Movement Core (100) Ox1 Location -10/Subcaves Parts ------- > --- POWER (1) -------- (None) > --- PROPULSION (2) --- (None) > --- UTILITY (2) ------ Disposable Heat Sink Small Storage Unit > --- WEAPON (2) ------- (None) > --- INVENTORY (8) ---- (None) Peak State ------------ > --- POWER ------------ Light Ion Engine > --- PROPULSION ------- Compact Wheel Compact Wheel > --- UTILITY ---------- Disposable Heat Sink Small Storage Unit > --- WEAPON ----------- Medium Laser Battle Cannon > --- INVENTORY -------- Ion Engine Mining Laser Mining Laser [Rating: 9] Favorites ----------- Power Ion Engine Engine Ion Engine Propulsion Compact Wheel Wheel Compact Wheel Utility Small Storage Unit Device Disposable Heat Sink Storage Small Storage Unit Weapon Assault Rifle Energy Gun Medium Laser Ballistic Gun Assault Rifle Ballistic Cannon Battle Cannon Special Weapon Mining Laser Build | -11 -10 -10 -10 ------- Run | Yrd Mat Min Sub Slots Evolved . | . . . . Power . | . . . . Propulsion . | . . . . Utility . | . . . . Weapon . | . . . . Parts Attached 12 | 6 . . 6 Power 2 | 1 . . 1 Engine 2 | 1 . . 1 Core . | . . . . Reactor . | . . . . Propulsion 2 | 2 . . . Treads . | . . . . Leg . | . . . . Wheel 2 | 2 . . . Hover . | . . . . Flight . | . . . . Utility 2 | 1 . . 1 Device 1 | . . . 1 Storage 1 | 1 . . . Processor . | . . . . Hackware . | . . . . Protection . | . . . . Artifact . | . . . . Weapon 6 | 2 . . 4 Energy Gun 2 | 1 . . 1 Energy Cannon . | . . . . Ballistic Gun 1 | 1 . . . Ballistic Cannon 1 | . . . 1 Launcher . | . . . . Special Weapon 2 | . . . 2 Impact Weapon . | . . . . Slashing Weapon . | . . . . Piercing Weapon . | . . . . Special Melee Weapon . | . . . . Unidentified Prototypes . | . . . . Parts Lost 10 | . . . 10 Power 2 | . . . 2 Propulsion 2 | . . . 2 Utility . | . . . . Weapon 6 | . . . 6 Highest Loss Streak 8 | . . . 8 To Critical Strikes 1 | . . . 1 Average Backups 2 | 1 2 4 2 Power . | . 1 1 . Propulsion . | . . . . Utility . | . . . . Weapon 1 | . 1 3 2 Tool/Special . | . . . . Unused Backups . | . . . . Power . | . . . . Propulsion . | . . . . Utility . | . . . . Weapon . | . . . . Tool/Special . | . . . . Average Slot Usage (%) 83 | . 85 85 82 Engine 13 | . 14 14 12 Wheel 26 | . 28 28 25 Device 4 | . . . 6 Storage 14 | . 14 14 14 Energy Gun 10 | . 14 14 8 Ballistic Gun 8 | . 14 14 7 Ballistic Cannon 1 | . . . 1 Special Weapon 3 | . . . 5 Peak Build Rating 9 | 6 6 6 9 Average Rating 6 | 4 6 6 6 On Entrance 4 | . 6 6 6 Avg Prop Armor Cover (%) . | . . . . Naked Turns . | . . . . Heaviest Build 14 | 14 14 14 14 Greatest Support 32 | 32 32 32 32 Greatest Overweight (x) 2 | . . . 2 Average Overweight (x) . | . . . . Largest Inventory Capacity 8 | 8 8 8 8 Average Capacity 7 | 6 8 8 8 Most Carried 6 | 3 4 4 6 Average Carried 2 | 1 2 4 2 Final Capacity 8 | 8 8 8 8 Final Carried 4 | 2 4 4 . Class Distribution -------------------- 100% | Mutant Dominant Class ---------------- Mutant | -10/Materials Mutant | -10/Mines Mutant | -10/Subcaves Resources | -11 -10 -10 -10 ----------- Run | Yrd Mat Min Sub Matter Collected 325 | 188 . . 137 Remotely . | . . . . Salvage Created 204 | 13 . . 191 Parts 17 | 2 . . 15 Haulers Intercepted . | . . . . Recyclers Shooed . | . . . . Parts Field Recycled . | . . . . Retrieved Matter . | . . . . Parts Self-Destructed 4 | . . . 4 Prevented . | . . . . Parts Restored . | . . . . Kills | -11 -10 -10 -10 ------- Run | Yrd Mat Min Sub Combat Hostiles Destroyed 4 | . . . 4 Guns 4 | . . . 4 Classes Destroyed 2 | 1 . . 1 Tunneler 1 | 1 . . . Subdweller 4 | . . . 4 Best Kill Streak 2 | 1 . . 2 Combat Bots Only 2 | . . . 2 Max Kills in Single Turn 1 | 1 . . 1 Gunslinging . | . . . . Exploded . | . . . . Melee . | . . . . Uniques/NPCs Destroyed . | . . . . Combat | -11 -10 -10 -10 -------- Run | Yrd Mat Min Sub Hostile Shots Fired 73 | . . . 73 Missed 31 | . . . 31 Hits 42 | . . . 42 Projectile 42 | . . . 42 AOE 5 | . . . 5 Critical Strikes 1 | . . . 1 Damage Taken 1039 | 28 . . 1011 Core 256 | . . . 256 Absorbed by Shields . | . . . . Core Remaining (%) 100 | 100 . . . Volleys Fired 28 | 1 . . 27 Largest 2 | 2 . . 2 Hottest 100 | 60 . . 100 Shots Fired 48 | 2 . . 46 Gun 40 | 2 . . 38 Cannon 7 | . . . 7 Launcher . | . . . . Special 1 | . . . 1 Kinetic 23 | 1 . . 22 Thermal 15 | . . . 15 Explosive . | . . . . Electromagnetic 10 | 1 . . 9 Robot Hit Streak 11 | 1 . . 11 Robot Miss Streak 2 | 1 . . 2 Penetration Max . | . . . . Secondary Targets . | . . . . Shots Hit Robots 39 | 1 . . 38 Core Hits 10 | 1 . . 9 Critical Kills . | . . . . Critical Parts Destroyed . | . . . . Critical Strikes 1 | . . . 1 Burn 1 | . . . 1 Melee Attacks . | . . . . Impact . | . . . . Slashing . | . . . . Piercing . | . . . . Sneak Attacks . | . . . . Combat Hostiles . | . . . . Follow-up Attacks . | . . . . Damage Inflicted 564 | 84 . . 480 Guns 344 | 15 . . 329 Cannons 127 | . . . 127 Explosions 69 | 69 . . . Melee . | . . . . Ramming . | . . . . Kinetic 265 | . . . 265 Thermal 229 | 69 . . 160 Explosive . | . . . . Electromagnetic 70 | 15 . . 55 Impact . | . . . . Slashing . | . . . . Piercing . | . . . . Highest Corruption . | . . . . Average Corruption . | . . . . Corruption Purged . | . . . . Corruption Blocked . | . . . . Overload Shots . | . . . . Overflow Damage . | . . . . Projectiles . | . . . . Explosions . | . . . . Melee . | . . . . Knockbacks 3 | . . . 3 Impact . | . . . . Kinetic 3 | . . . 3 Secondary . | . . . . Self-Inflicted Damage 28 | 28 . . . Shots 1 | 1 . . . Rammed . | . . . . Targets Rammed . | . . . . Kicked . | . . . . Crushed . | . . . . Highest Temperature 15 | 12 . . 15 Average Temperature 11 | 12 . . 9 Received Heat Transfer 90 | . . . 90 Siege Activations . | . . . . Martial Activations . | . . . . Shielding Activations . | . . . . Robots Disrupted . | . . . . Combat Hostiles . | . . . . Robots Corrupted . | . . . . Combat Hostiles . | . . . . Parts Fried . | . . . . Impact Corruptions . | . . . . Robots Melted . | . . . . Combat Hostiles . | . . . . Parts Melted . | . . . . Heat Transferred 581 | 50 . . 531 Parts Sabotaged . | . . . . Parts Stolen . | . . . . Parts Stripped . | . . . . Power Chain Reactions 1 | 1 . . . Alert | -11 -10 -10 -10 ------- Run | Yrd Mat Min Sub Maximum Alert Level . | . . . . Low Security (%) 100 | 100 100 100 . Level 1 . | . . . . Level 2 . | . . . . Level 3 . | . . . . Level 4 . | . . . . Level 5 . | . . . . High Security . | . . . . Max Security . | . . . . Peak Influence 5 | 5 3 . . Initial 3 | . 3 . . Average . | . . . . Influence Increases 5 | 5 . . . Destroy 0b10 Robot/NC 5 | 5 . . . Influence Decreases 5 | . 5 . . Entered New Map 2 | . 2 . . Time Decay 3 | . 3 . . Squads Dispatched . | . . . . Investigation . | . . . . Extermination . | . . . . Reinforcement . | . . . . Assault . | . . . . Garrison . | . . . . Intercept . | . . . . Searches Triggered . | . . . . Construction Impeded . | . . . . Haulers Reinforced . | . . . . Active Scanning Responses . | . . . . Cargo Convoy Interrupts . | . . . . Stealth | -11 -10 -10 -10 --------- Run | Yrd Mat Min Sub Distress Signals . | . . . . Communications Jammed . | . . . . Distress Signals . | . . . . Times Spotted 9 | . . . 9 Peak Tracking Total 4 | . . . 4 Tactical Retreats . | . . . . Traps | -11 -10 -10 -10 ------- Run | Yrd Mat Min Sub Traps Triggered . | . . . . Indirectly . | . . . . Trap Hack Attempts . | . . . . Triggered . | . . . . Disarmed . | . . . . Reprogrammed . | . . . . Reused . | . . . . Traps Extracted . | . . . . Installed . | . . . . Triggered . | . . . . Machines | -11 -10 -10 -10 ---------- Run | Yrd Mat Min Sub Machines Disabled . | . . . . Max in Single Turn . | . . . . Machines Repaired . | . . . . Machines Dismantled . | . . . . Machines Sabotaged . | . . . . Overloaded Fab Kills . | . . . . Hacking | -11 -10 -10 -10 --------- Run | Yrd Mat Min Sub Machines Accessed . | . . . . Terminals . | . . . . Fabricators . | . . . . Repair Stations . | . . . . Recycling Units . | . . . . Scanalyzers . | . . . . Garrison Access . | . . . . Total Hacks . | . . . . Successful . | . . . . Failed . | . . . . Catastrophic . | . . . . Database Lockouts . | . . . . Manual . | . . . . Terminals . | . . . . Fabricators . | . . . . Repair Stations . | . . . . Recycling Units . | . . . . Scanalyzers . | . . . . Garrison Access . | . . . . Terminal Hacks . | . . . . Fabricator Hacks . | . . . . Repair Station Hacks . | . . . . Recycling Unit Hacks . | . . . . Scanalyzer . | . . . . Garrison Access Hacks . | . . . . Unauthorized Hacks . | . . . . Terminals . | . . . . Fabricators . | . . . . Repair Stations . | . . . . Recycling Units . | . . . . Scanalyzers . | . . . . Garrison Access . | . . . . Data Cores Recovered . | . . . . Used . | . . . . Hacking Detections . | . . . . Full Trace Events . | . . . . Feedback Events . | . . . . Feedback Blocked . | . . . . Robot Schematics Acquired . | . . . . Robots Built . | . . . . Authchips . | . . . . Time . | . . . . Total Robot Build Rating . | . . . . Part Schematics Acquired . | . . . . Parts Built . | . . . . Authchips . | . . . . Time . | . . . . Total Part Build Rating . | . . . . Part Studies Acquired . | . . . . Parts Repaired . | . . . . Time . | . . . . Parts Recycled . | . . . . Recycled Matter . | . . . . Retrieved Matter . | . . . . Retrieved Components . | . . . . Parts Scanalyzed . | . . . . Part Schematics Acquired . | . . . . Parts Damaged . | . . . . Bothacking | -11 -10 -10 -10 ------------ Run | Yrd Mat Min Sub Used RIF Installer . | . . . . Robots Hacked . | . . . . Non-combat . | . . . . Combat . | . . . . Robot Hacks Applied . | . . . . Relay Couplers Released . | . . . . Fabnet Peak Effective % . | . . . . Robots Rewired . | . . . . Allies Hacked . | . . . . Hacks Repelled . | . . . . Allies | -11 -10 -10 -10 -------- Run | Yrd Mat Min Sub Total Allies . | . . . . Largest Group . | . . . . Highest-Rated Group . | . . . . Highest-Rated Ally . | . . . . Total Orders . | . . . . Ally Attacks . | . . . . Total Damage . | . . . . Kills . | . . . . Allies Corrupted . | . . . . Allies Melted . | . . . . Intel | -11 -10 -10 -10 ------- Run | Yrd Mat Min Sub Active Infowar (turns) . | . . . . Robot Analysis Total . | . . . . Derelict Logs Recovered . | . . . . Drone Launches . | . . . . Drone Recoveries . | . . . . Exploration | -11 -10 -10 -10 ------------- Run | Yrd Mat Min Sub Turns Passed 592 | 56 70 47 419 Spaces Moved 441 | 42 69 7 323 Core 21 | 4 . . 17 Treads . | . . . . Legs . | . . . . Wheels 420 | 38 69 7 306 Hover . | . . . . Flight . | . . . . Fastest Speed 50 | 50 100 100 100 Average Speed 100 | 95 100 100 101 Slowest Speed 150 | 100 100 100 150 Overloaded Moves . | . . . . Propulsion Burnouts . | . . . . Robots Hopped . | . . . . Potential Cave-ins . | . . . . Cave-ins Triggered . | . . . . Exploration Rate (%) 14 | 4 17 6 30 Regions Visited 3 Branch Regions 2 Pre-discovered Areas . | . . . . Known Exits Taken . | . . . . Unknown Exits Taken 3 | 1 1 1 . Scrap Searched . | . . . . Spaces Dug . | . . . . Terrain Destroyed 6 | 6 . . . Melee . | . . . . Projectile . | . . . . AOE 6 | 6 . . . Terrain Rammed . | . . . . Walls Destroyed . | . . . . Machines Disabled . | . . . . Actions | -11 -10 -10 -10 --------- Run | Yrd Mat Min Sub Total 540 | 56 70 47 367 Wait 42 | . . 41 1 Move 438 | 41 68 6 323 Hop . | . . . . Pick Up 15 | 8 2 . 5 Fast Attach . | . . . . Attach 12 | 6 . . 6 Detach . | . . . . Swap 2 | . . . 2 Drop 3 | . . . 3 Fire 28 | 1 . . 27 Melee . | . . . . Ram . | . . . . Kick . | . . . . Crush . | . . . . Escape Stasis . | . . . . Rewire . | . . . . Trap . | . . . . Miscellaneous . | . . . . Route ------- -11/Scrapyard -10/Materials -10/Mines -10/Subcaves History --------- Turn | Location | Event 38 | -11/Scrapyard | Discovered new exit (range 12) 57 | -11/Scrapyard | Entered Materials 110 | -10/Materials | Discovered new exit (range 9) 127 | -10/Materials | Entered Mines 161 | -10/Mines | Discovered new exit (range 4) 174 | -10/Mines | Entered Subcaves 196 | -10/Subcaves | Ambushed by Subdwellers from Twisted Machinery 317 | -10/Subcaves | Build established: Mutant 370 | -10/Subcaves | Shifting Twisted Machinery released Piercing Trap 421 | -10/Subcaves | Shifting Twisted Machinery released Shrapnel Trap 498 | -10/Subcaves | Shifting Twisted Machinery released Battle Cannon 551 | -10/Subcaves | Ambushed by Subdweller buried in earth 570 | -10/Subcaves | Ambushed by Subdweller buried in earth 581 | -10/Subcaves | Core integrity fell below 50% 586 | -10/Subcaves | Core integrity fell below 20% 593 | -10/Subcaves | Destroyed by CL-ZJW(R) with Subdweller Machine Gun Last Messages --------------- Machinery. Acquired Battle Cannon. 8G-RN2(R) suffers critical hit (Burn). 8G-RN2(R) knocked back. [Achievement: Do Not Disturb] Com. Wheel destroyed. N4-VJZ(R): "ARGHSUB!" N4-VJZ(R) knocked back. CL-ZJW(R) knocked back. Lgt. Ion Engine destroyed. Med. Laser destroyed. Critical hit (Destroy). Com. Wheel destroyed. Battle Cannon destroyed. Ion Engine destroyed. N4-VJZ(R) destroyed. 30-E3B(R): "ARGHSUB!" Mining Laser destroyed. Acquired 7 matter. 9P-59Y(R): "ARGHSUB!" Map ----- +----------------------------------------------------+ | ?????????????????????????????????????????????????? | | ?????????????????????????????????????????????????? | | ?????????????????????????????????????????????????? | | ?????????????????????????????????????????????????? | | ?????????????????????????????????????????????????? | | ?????????????????????????????????????????????????? | | ?????????????????????????????????????????????????? | | ?????????????????????????????????????????????????? | | ?????????????????????????????????????????????????? | | ?????????????????????????????????????????????????? | | ?????????????????????????????????????????????????? | | ?????????????????????????????????????????????????? | | ?????????????????????????????????????????????????? | | ?????????????????????????????????????????????????? | | ?????????????????????????????????????????????????? | | ????????????????????????##??##???????????????????? | | ????????????????????????# ## #???????????????????? | | ????????????????????????# ####????????????????? | | ???????????????????????## #????????????????? | | ??????????????????????## ???????????#####?? | | ?????????????????????## ??????????## ??? | | ????????????????????## ??????????# #??? | | ???????????????????## ## ?????????## #### | | ??????????????????## # ##???????#" "# | | ?????????????????## ## #?????### " | | ?????????????????# @ # ####### | | ????????????????# ## ## | | ??????????????# ### | | ????????????# ???# % | | ????????????# ???## R R | | ????????????### ?????# R | | ??????????????####?????# ### & | | ???????????????????????########## | | ????????????????????????????????## | | ?????????????????????????????????# #### | | ?????????????????????????????????### # ### #??? | | ???????????????????????????????????#######??###??? | | ?????????????????????????????????????????????????? | | ?????????????????????????????????????????????????? | | ?????????????????????????????????????????????????? | | ?????????????????????????????????????????????????? | | ?????????????????????????????????????????????????? | | ?????????????????????????????????????????????????? | | ?????????????????????????????????????????????????? | | ?????????????????????????????????????????????????? | | ?????????????????????????????????????????????????? | | ?????????????????????????????????????????????????? | | | | | | | +----------------------------------------------------+ Best States ------------- Heat Dissipation 25 Coolant Potential 50 Energy Generation 10 Energy Capacity 250 Matter Stores 300 Matter Capacity 300 Sight Range 16 Terrain Scan Density 10 Evasion (%) 40 Item Schematics ----------------- None Robot Schematics ------------------ None Fabricated ------------ Nothing Repaired ---------- Nothing Studied --------- None Alien Tech Used ----------------- None Achievements -------------- Do Not Disturb Challenges ------------ None Game ------ Seed NavigationElectrostormCore Manual? 0 Play Time 00:08:16 Cumulative 11.7 hours Start 2026.08.06 @ 13:02:52 End 2026.08.06 @ 13:07:43 Sessions 1 Manual Loads 0 Difficulty Rogue Special Mode None Game No. 38 Rogue 38 Adventurer 0 Explorer 0 Win Type - Total 0 Types 0/0/0/0/0/0/0/0/0/0 Lore% 12 Gallery% 19 Achievement% 14 Wizard Run 0 Options --------- Layout 1 ASCII 0 Keyboard 0 Movement Mouse Keybinds 0 Fullscreen 1 Font 24/Smallcaps Map View 50x35 Zoom Use 0% Tactical HUD 0 Map Filters NONE Filters NONE Steam 1 RUN: bf05467a-23a4-4bdf-91f1-31d00f3d8668